[Event "XXIX Cracovia 2018"]
[Site "Krakow"]
[Date "2018.12.29"]
[Round "3"]
[White "Zeliantsova, Kseniya"]
[Black "Warchol, Bartosz"]
[Result "0-1"]
[ECO "C22"]
[WhiteElo "1858"]
[BlackElo "1975"]
[Annotator "NA"]
[PlyCount "46"]
[EventDate "2018.12.27"]
[EventType "swiss"]
[EventCountry "POL"]
[SourceTitle "playchess.com"]
[Source "ChessBase"]
[SourceQuality "1"]
[TimeControl "40/5400+30:1800+30"]

1. e4 {[%emt 0:00:00]} e5 {[%emt 0:00:00]} 2. d4 {[%emt 0:00:56]} exd4 {[%emt 0:00:46]} 3. Qxd4 {[%emt 0:00:03]} Nc6 {[%emt 0:01:11]} 4. Qe3 {[%emt 0:00:04]} g6 {[%emt 0:05:50]} 5. Nc3 {[%emt 0:00:11]} Bg7 {[%emt 0:01:09]} 6. Bd2 {[%emt 0:00:44]} d6 {[%emt 0:03:18]} 7. O-O-O {[%emt 0:02:48]} Nf6 {[%emt 0:00:50]} 8. f3 {[%emt 0:01:46]} O-O {[%emt 0:01:31]} 9. g4 {[%emt 0:02:09]} Re8 {[%emt 0:04:26]} 10. Qf2 {[%emt 0:01:36]} Be6 {[%emt 0:02:34]} 11. g5 {[%emt 0:08:15]} Nh5 {[%emt 0:08:12]} 12. f4 {[%emt 0:02:44]} f5 {[%emt 0:05:38]} 13. exf5 {[%emt 0:11:01]} Bxf5 {[%emt 0:00:38]} 14. Bc4+ {[%emt 0:00:46]} Kh8 {[%emt 0:01:09]} 15. Nge2 {[%emt 0:02:06]} Na5 {[%emt 0:08:47]} 16. Bd5 {[%emt 0:00:58]} c6 {[%emt 0:01:12]} 17. Bf3 {[%emt 0:01:49]} Nc4 {[%emt 0:02:53]} 18. Bxh5 {[%emt 0:12:28]} gxh5 {[%emt 0:02:26]} 19. Ng3 {[%emt 0:01:18]} Qa5 {[%emt 0:04:47]} 20. a3 {[%emt 0:25:58]} Nxa3 {[%emt 0:06:49]} 21. Nb1 {[%emt 0:02:53]} Nc4 {[%emt 0:05:53]} 22. Rde1 {[%emt 0:06:00]} Bxb2+ {[%emt 0:06:49]} 23. Kd1 {[%emt 0:00:03]} Bg4+ {[%emt 0:01:42]} 0-1

[Event "XXIX Cracovia 2018"]
[Site "Krakow"]
[Date "2018.12.29"]
[Round "4"]
[White "Klekowski, Maciej"]
[Black "Vojtek, Vladimir"]
[Result "1-0"]
[ECO "A13"]
[WhiteElo "2499"]
[BlackElo "2313"]
[Annotator "ChessBase"]
[PlyCount "85"]
[EventDate "2018.12.27"]
[EventType "swiss"]
[EventCountry "POL"]
[SourceTitle "playchess.com"]
[Source "ChessBase"]
[SourceQuality "1"]
[TimeControl "40/5400+30:1800+30"]

1. Nf3 {[%emt 0:00:00]} d5 {[%emt 0:00:05]} 2. c4 {[%emt 0:00:00]} e6 {[%emt 0:01:10]} 3. g3 {[%emt 0:00:00]} c6 {[%emt 0:00:41]} 4. Qc2 {[%emt 0:00:35]} Bd6 {[%emt 0:03:54]} 5. d4 {[%emt 0:00:20]} f5 {[%emt 0:01:08]} 6. Nc3 {[%emt 0:07:31]} Nf6 {[%emt 0:00:08]} 7. Bg2 {[%emt 0:00:33]} O-O {[%emt 0:00:15]} 8. O-O {[%emt 0:00:19]} Ne4 {[%emt 0:03:19]} 9. c5 {[%emt 0:08:04]} Be7 {[%emt 0:10:42]} 10. Bf4 {[%emt 0:04:13]} g5 {[%emt 0:04:06]} 11. Bxb8 {[%emt 0:00:20]} Rxb8 {[%emt 0:00:06]} 12. Ne5 {[%emt 0:05:17]} Bf6 {[%emt 0:13:14]} 13. Nxe4 {[%emt 0:09:49]} Bxe5 {[%emt 0:04:15]} 14. dxe5 {[%emt 0:00:17]} fxe4 {[%emt 0:00:20]} 15. f3 {[%emt 0:02:00]} Qc7 {[%emt 0:14:56]} 16. Qc3 {[%emt 0:02:57]} exf3 {[%emt 0:01:18]} 17. exf3 {[%emt 0:00:53]} Qe7 {[%emt 0:09:59]} 18. Rac1 {[%emt 0:04:49]} Bd7 {[%emt 0:00:30]} 19. Rfd1 {[%emt 0:02:37]} Be8 {[%emt 0:00:48]} 20. Rd4 {[%emt 0:00:07]} b6 {[%emt 0:02:34]} 21. b4 {[%emt 0:02:00]} Kh8 {[%emt 0:03:31]} 22. h4 {[%emt 0:02:57]} gxh4 {[%emt 0:00:52]} 23. Rxh4 {[%emt 0:00:08]} bxc5 {[%emt 0:01:24]} 24. Qxc5 {[%emt 0:08:35]} Qxc5+ {[%emt 0:01:20]} 25. Rxc5 {[%emt 0:00:06]} Rf5 {[%emt 0:03:26]} 26. f4 {[%emt 0:01:03]} Rf8 {[%emt 0:12:11]} 27. a3 {[%emt 0:01:55]} Rb6 {[%emt 0:02:25]} 28. Ra5 {[%emt 0:02:28]} a6 {[%emt 0:00:53]} 29. Bf1 {[%emt 0:02:53]} Bg6 {[%emt 0:00:31]} 30. Rh2 {[%emt 0:00:16]} d4 {[%emt 0:01:34]} 31. Bc4 {[%emt 0:02:14]} Bf5 {[%emt 0:00:48]} 32. Rd2 {[%emt 0:00:06]} Rd8 {[%emt 0:01:04]} 33. Kf2 {[%emt 0:00:17]} Kg7 {[%emt 0:01:29]} 34. Rxa6 {[%emt 0:01:59]} Rxa6 {[%emt 0:00:16]} 35. Bxa6 {[%emt 0:00:04]} Ra8 {[%emt 0:00:11]} 36. Bb7 {[%emt 0:01:14]} Rxa3 {[%emt 0:00:09]} 37. Bxc6 {[%emt 0:00:03]} Bd3 {[%emt 0:01:16]} 38. Rb2 {[%emt 0:01:04]} Bc4 {[%emt 0:01:06]} 39. b5 {[%emt 0:00:12]} d3 {[%emt 0:00:08]} 40. b6 {[%emt 0:00:00]} d2 {[%emt 0:00:00]} 41. Rxd2 {[%emt 0:01:00]} Rb3 {[%emt 0:00:46]} 42. b7 {[%emt 0:00:04]} Ba6 {[%emt 0:00:07]} 43. Rd8 {[%emt 0:00:05]} 1-0

[Event "XXIX Cracovia 2018"]
[Site "Krakow"]
[Date "2018.12.29"]
[Round "4"]
[White "Schreiner, Peter"]
[Black "Kyc, Jerzy"]
[Result "1/2-1/2"]
[ECO "A05"]
[WhiteElo "2479"]
[BlackElo "2280"]
[Annotator "ChessBase"]
[PlyCount "93"]
[EventDate "2018.12.27"]
[EventType "swiss"]
[EventCountry "POL"]
[SourceTitle "playchess.com"]
[Source "ChessBase"]
[SourceQuality "1"]
[TimeControl "40/5400+30:1800+30"]

1. Nf3 {[%emt 0:00:00]} Nf6 {[%emt 0:00:00]} 2. c4 {[%emt 0:00:05]} g6 {[%emt 0:00:00]} 3. Nc3 {[%emt 0:00:07]} c5 {[%emt 0:00:00]} 4. e4 {[%emt 0:00:17]} d6 {[%emt 0:00:00]} 5. d4 {[%emt 0:00:04]} cxd4 {[%emt 0:00:04]} 6. Nxd4 {[%emt 0:00:03]} Bg7 {[%emt 0:00:09]} 7. Be2 {[%emt 0:00:41]} Nc6 {[%emt 0:00:06]} 8. Be3 {[%emt 0:00:31]} O-O {[%emt 0:00:13]} 9. O-O {[%emt 0:00:18]} Bd7 {[%emt 0:06:28]} 10. h3 {[%emt 0:01:50]} Rc8 {[%emt 0:00:13]} 11. Qd2 {[%emt 0:02:29]} Nxd4 {[%emt 0:04:29]} 12. Bxd4 {[%emt 0:02:18]} Bc6 {[%emt 0:03:25]} 13. Qd3 {[%emt 0:11:07]} a5 {[%emt 0:06:40]} 14. b3 {[%emt 0:21:33]} Nd7 {[%emt 0:08:19]} 15. Bxg7 {[%emt 0:03:11]} Kxg7 {[%emt 0:04:46]} 16. Qd4+ {[%emt 0:04:28]} Kg8 {[%emt 0:02:11]} 17. Bg4 {[%emt 0:00:26]} Rc7 {[%emt 0:03:48]} 18. Bxd7 {[%emt 0:03:59]} Rxd7 {[%emt 0:01:56]} 19. f4 {[%emt 0:00:45]} f5 {[%emt 0:11:28]} 20. Rae1 {[%emt 0:08:55]} e5 {[%emt 0:14:18]} 21. Qd2 {[%emt 0:15:30]} Qb6+ {[%emt 0:05:22]} 22. Kh2 {[%emt 0:01:43]} fxe4 {[%emt 0:08:05]} 23. Nd5 {[%emt 0:05:06]} Qc5 {[%emt 0:02:51]} 24. Rxe4 {[%emt 0:03:37]} Rdf7 {[%emt 0:05:24]} 25. Rc1 {[%emt 0:03:45]} exf4 {[%emt 0:02:21]} 26. Ne7+ {[%emt 0:00:28]} Rxe7 {[%emt 0:02:16]} 27. Rxe7 {[%emt 0:00:09]} Qg5 {[%emt 0:00:04]} 28. Rce1 {[%emt 0:04:11]} Qg3+ {[%emt 0:01:23]} 29. Kg1 {[%emt 0:00:12]} f3 {[%emt 0:01:18]} 30. Qf2 {[%emt 0:00:48]} Qxf2+ {[%emt 0:02:18]} 31. Kxf2 {[%emt 0:00:02]} fxg2+ {[%emt 0:00:01]} 32. Kg1 {[%emt 0:00:23]} Rf4 {[%emt 0:02:55]} 33. Rc7 {[%emt 0:05:07]} a4 {[%emt 0:02:13]} 34. bxa4 {[%emt 0:00:35]} Rf3 {[%emt 0:00:46]} 35. Kxg2 {[%emt 0:00:50]} Rf7+ {[%emt 0:00:08]} 36. Rxc6 {[%emt 0:00:05]} bxc6 {[%emt 0:00:02]} 37. Re8+ {[%emt 0:01:37]} Kg7 {[%emt 0:00:02]} 38. Rc8 {[%emt 0:00:13]} c5 {[%emt 0:01:23]} 39. Rc6 {[%emt 0:01:21]} Ra7 {[%emt 0:00:06]} 40. Rxd6 {[%emt 0:00:00]} Rxa4 {[%emt 0:00:00]} 41. Rc6 {[%emt 0:02:39]} Rxc4 {[%emt 0:00:11]} 42. a4 {[%emt 0:00:18]} Rxa4 {[%emt 0:00:04]} 43. Rxc5 {[%emt 0:00:06]} Kh6 {[%emt 0:00:16]} 44. Kg3 {[%emt 0:01:48]} g5 {[%emt 0:00:13]} 45. Rc3 {[%emt 0:00:50]} Kh5 {[%emt 0:00:03]} 46. Rb3 {[%emt 0:00:43]} h6 {[%emt 0:01:01]} 47. Rc3 {[%emt 0:00:09]} 1/2-1/2

[Event "XXIX Cracovia 2018"]
[Site "Krakow"]
[Date "2018.12.29"]
[Round "4"]
[White "Tomczak, Mikolaj"]
[Black "Kusnetsov, Sergey"]
[Result "1/2-1/2"]
[ECO "B07"]
[WhiteElo "2442"]
[BlackElo "2257"]
[Annotator "NA"]
[PlyCount "55"]
[EventDate "2018.12.27"]
[EventType "swiss"]
[EventCountry "POL"]
[SourceTitle "playchess.com"]
[Source "ChessBase"]
[SourceQuality "1"]
[TimeControl "40/5400+30:1800+30"]

1. e4 {[%emt 0:00:00]} d6 {[%emt 0:00:23]} 2. d4 {[%emt 0:00:00]} Nf6 {[%emt 0:00:07]} 3. Nc3 {[%emt 0:00:03]} g6 {[%emt 0:00:05]} 4. g3 {[%emt 0:01:38]} Bg7 {[%emt 0:00:20]} 5. Bg2 {[%emt 0:00:05]} O-O {[%emt 0:00:45]} 6. Nge2 {[%emt 0:00:06]} e5 {[%emt 0:01:28]} 7. h3 {[%emt 0:01:19]} Nc6 {[%emt 0:04:07]} 8. Be3 {[%emt 0:00:19]} exd4 {[%emt 0:02:10]} 9. Nxd4 {[%emt 0:00:06]} Bd7 {[%emt 0:01:34]} 10. O-O {[%emt 0:00:29]} Re8 {[%emt 0:00:57]} 11. Nde2 {[%emt 0:02:04]} Rb8 {[%emt 0:02:29]} 12. a4 {[%emt 0:04:20]} a6 {[%emt 0:02:25]} 13. g4 {[%emt 0:02:18]} b5 {[%emt 0:02:03]} 14. axb5 {[%emt 0:03:05]} axb5 {[%emt 0:00:02]} 15. Ng3 {[%emt 0:01:39]} b4 {[%emt 0:03:03]} 16. Na4 {[%emt 0:02:07]} h6 {[%emt 0:02:48]} 17. Qd2 {[%emt 0:02:49]} Kh7 {[%emt 0:03:51]} 18. b3 {[%emt 0:02:22]} Ne5 {[%emt 0:11:56]} 19. Rfe1 {[%emt 0:08:09]} Bb5 {[%emt 0:09:59]} 20. Nb2 {[%emt 0:15:14]} Nfd7 {[%emt 0:02:17]} 21. Ra2 {[%emt 0:04:14]} Qe7 {[%emt 0:05:46]} 22. Nd1 {[%emt 0:13:15]} c5 {[%emt 0:01:05]} 23. c4 {[%emt 0:08:12]} bxc3 {[%emt 0:00:38]} 24. Nxc3 {[%emt 0:00:03]} Nc6 {[%emt 0:01:25]} 25. Nd5 {[%emt 0:07:04]} Qd8 {[%emt 0:00:07]} 26. Rd1 {[%emt 0:03:52]} Nd4 {[%emt 0:05:07]} 27. Bxd4 {[%emt 0:06:25]} Bxd4 {[%emt 0:00:20]} 28. Qf4 {[%emt 0:03:59]} 1/2-1/2

[Event "XXIX Cracovia 2018"]
[Site "Krakow"]
[Date "2018.12.29"]
[Round "4"]
[White "Cukrowski, Filip"]
[Black "Baum, Jonasz"]
[Result "1/2-1/2"]
[ECO "B52"]
[WhiteElo "2416"]
[BlackElo "2302"]
[Annotator "NA"]
[PlyCount "23"]
[EventDate "2018.12.27"]
[EventType "swiss"]
[EventCountry "POL"]
[SourceTitle "playchess.com"]
[Source "ChessBase"]
[SourceQuality "1"]
[TimeControl "40/5400+30:1800+30"]

1. e4 {[%emt 0:01:52]} c5 {[%emt 0:00:00]} 2. Nf3 {[%emt 0:00:05]} d6 {[%emt 0:00:00]} 3. Bb5+ {[%emt 0:00:24]} Bd7 {[%emt 0:00:00]} 4. Bxd7+ {[%emt 0:02:52]} Qxd7 {[%emt 0:00:03]} 5. c4 {[%emt 0:00:08]} Nf6 {[%emt 0:00:29]} 6. Nc3 {[%emt 0:00:07]} g6 {[%emt 0:00:10]} 7. d4 {[%emt 0:00:07]} cxd4 {[%emt 0:00:05]} 8. Nxd4 {[%emt 0:00:07]} Bg7 {[%emt 0:00:04]} 9. O-O {[%emt 0:00:08]} O-O {[%emt 0:00:05]} 10. f3 {[%emt 0:01:36]} Rc8 {[%emt 0:00:07]} 11. b3 {[%emt 0:00:06]} d5 {[%emt 0:01:51]} 12. exd5 {[%emt 0:00:07]} 1/2-1/2

[Event "XXIX Cracovia 2018"]
[Site "Krakow"]
[Date "2018.12.29"]
[Round "4"]
[White "Grib, Roman"]
[Black "Kokoszczynski, Jan"]
[Result "1/2-1/2"]
[ECO "B31"]
[WhiteElo "2412"]
[BlackElo "2242"]
[Annotator "NA"]
[PlyCount "52"]
[EventDate "2018.12.27"]
[EventType "swiss"]
[EventCountry "POL"]
[SourceTitle "playchess.com"]
[Source "ChessBase"]
[SourceQuality "1"]
[TimeControl "40/5400+30:1800+30"]

1. e4 c5 2. Nf3 Nc6 3. Bb5 g6 4. Bxc6 dxc6 5. d3 Bg7 6. h3 Nf6 7. Nc3 Nd7 8. Be3 e5 9. Qd2 h6 10. O-O b6 11. Nh2 Nf8 12. f4 exf4 13. Rxf4 g5 14. Rf2 Be6 15. a4 a5 16. Nf3 Qc7 17. Rff1 Ng6 18. d4 cxd4 19. Nxd4 O-O 20. Nf5 Rad8 21. Qf2 c5 22. Nxg7 Kxg7 23. Nb5 Qe7 24. Bd2 f6 25. b3 Kh7 26. Rae1 Rf7 1/2-1/2

[Event "XXIX Cracovia 2018"]
[Site "Krakow"]
[Date "2018.12.29"]
[Round "4"]
[White "Lewtak, Damian"]
[Black "Rakhmangulova, Anastasiya"]
[Result "1-0"]
[ECO "D00"]
[WhiteElo "2393"]
[BlackElo "2233"]
[Annotator "ChessBase"]
[PlyCount "123"]
[EventDate "2018.12.27"]
[EventType "swiss"]
[EventCountry "POL"]
[SourceTitle "playchess.com"]
[Source "ChessBase"]
[SourceQuality "1"]
[TimeControl "40/5400+30:1800+30"]

1. d4 d5 2. Bf4 Nf6 3. e3 e6 4. c3 c5 5. Nd2 Nc6 6. Ngf3 Bd6 7. Bg3 O-O 8. Bb5 Ne7 9. Bd3 h6 10. Qe2 cxd4 11. exd4 Rb8 12. O-O Ne8 13. a4 a6 14. a5 Bd7 15. Ne5 Bxe5 16. Bxe5 Rc8 17. Nb3 Nc6 18. Bg3 Nf6 19. Nc5 Nxa5 20. b4 Rxc5 21. bxc5 Nc4 22. f4 Qc8 23. Bh4 Nh7 24. Rf3 f5 25. Bxc4 dxc4 26. Re3 Nf6 27. Bxf6 Rxf6 28. Re1 Rg6 29. Qxc4 Kh7 30. Rg3 Rxg3 31. hxg3 a5 32. Ra1 Qc7 33. Qb3 a4 34. Qb6 Qc8 35. c4 Bc6 36. Rd1 Qe8 37. d5 exd5 38. cxd5 Bb5 39. Qe6 Qxe6 40. dxe6 Kg6 41. Re1 Kf6 42. e7 Kf7 43. Kf2 Bc6 44. Re3 h5 45. Re5 g6 46. Ke1 Ke8 47. Kd2 Bxg2 48. Re6 Bc6 49. Rxg6 Kxe7 50. Kc3 Kd7 51. Kb4 Kc7 52. Rg5 Bd7 53. Rg7 Kc8 54. Rh7 Kc7 55. Kc4 Kc6 56. Rxh5 b5+ 57. Kb4 Kc7 58. Rh6 Bc6 59. Rg6 Bd7 60. Rf6 Kb7 61. c6+ Bxc6 62. Rxf5 1-0

[Event "XXIX Cracovia 2018"]
[Site "Krakow"]
[Date "2018.12.29"]
[Round "4"]
[White "Goumas, Georgios"]
[Black "Chylewski, Patryk"]
[Result "1-0"]
[ECO "B17"]
[WhiteElo "2378"]
[BlackElo "2268"]
[Annotator "NA"]
[PlyCount "79"]
[EventDate "2018.12.27"]
[EventType "swiss"]
[EventCountry "POL"]
[SourceTitle "playchess.com"]
[Source "ChessBase"]
[SourceQuality "1"]
[TimeControl "40/5400+30:1800+30"]

1. e4 {[%emt 0:01:52]} c6 {[%emt 0:00:00]} 2. d4 {[%emt 0:00:36]} d5 {[%emt 0:00:00]} 3. Nd2 {[%emt 0:00:14]} dxe4 {[%emt 0:00:01]} 4. Nxe4 {[%emt 0:00:07]} Nd7 {[%emt 0:00:10]} 5. Nf3 {[%emt 0:00:07]} Ngf6 {[%emt 0:00:20]} 6. Nxf6+ {[%emt 0:00:11]} Nxf6 {[%emt 0:00:08]} 7. c3 {[%emt 0:00:11]} Bg4 {[%emt 0:04:35]} 8. h3 {[%emt 0:00:39]} Bxf3 {[%emt 0:05:56]} 9. Qxf3 {[%emt 0:00:08]} e6 {[%emt 0:00:05]} 10. g3 {[%emt 0:03:43]} Qd5 {[%emt 0:03:10]} 11. Bg2 {[%emt 0:00:08]} O-O-O {[%emt 0:02:26]} 12. O-O {[%emt 0:00:51]} Qxf3 {[%emt 0:01:26]} 13. Bxf3 {[%emt 0:00:07]} Nd5 {[%emt 0:03:54]} 14. Bd2 {[%emt 0:09:34]} c5 {[%emt 0:02:57]} 15. dxc5 {[%emt 0:06:06]} Bxc5 {[%emt 0:00:09]} 16. Rad1 {[%emt 0:01:04]} Rd7 {[%emt 0:01:45]} 17. c4 {[%emt 0:06:35]} Nb6 {[%emt 0:08:45]} 18. Bc3 {[%emt 0:01:56]} f6 {[%emt 0:08:09]} 19. b4 {[%emt 0:07:33]} Be7 {[%emt 0:06:24]} 20. Rxd7 {[%emt 0:18:49]} Nxd7 {[%emt 0:01:44]} 21. c5 {[%emt 0:00:20]} Rd8 {[%emt 0:03:56]} 22. Rc1 {[%emt 0:01:24]} Kb8 {[%emt 0:10:17]} 23. Kg2 {[%emt 0:02:25]} e5 {[%emt 0:01:26]} 24. a3 {[%emt 0:05:57]} Nf8 {[%emt 0:10:57]} 25. Be4 {[%emt 0:05:19]} g6 {[%emt 0:04:46]} 26. h4 {[%emt 0:04:37]} Nd7 {[%emt 0:02:17]} 27. h5 {[%emt 0:07:25]} f5 {[%emt 0:06:36]} 28. Bc2 {[%emt 0:00:06]} Bf6 {[%emt 0:01:35]} 29. Rd1 {[%emt 0:00:21]} Kc7 {[%emt 0:06:09]} 30. hxg6 {[%emt 0:00:11]} hxg6 {[%emt 0:00:09]} 31. Rd6 {[%emt 0:01:05]} b6 {[%emt 0:04:31]} 32. Rxf6 {[%emt 0:00:10]} Nxf6 {[%emt 0:00:07]} 33. Bxe5+ {[%emt 0:00:04]} Kc6 {[%emt 0:00:30]} 34. Bxf6 {[%emt 0:00:05]} Rd2 {[%emt 0:00:39]} 35. Ba4+ {[%emt 0:00:47]} b5 {[%emt 0:00:13]} 36. Bb3 {[%emt 0:00:05]} Rd3 {[%emt 0:00:40]} 37. Bf7 {[%emt 0:00:07]} Rxa3 {[%emt 0:00:14]} 38. Be8+ {[%emt 0:00:07]} Kc7 {[%emt 0:01:19]} 39. Be5+ {[%emt 0:01:08]} Kd8 {[%emt 0:00:22]} 40. Bxg6 {[%emt 0:00:00]} 1-0

[Event "XXIX Cracovia 2018"]
[Site "Krakow"]
[Date "2018.12.29"]
[Round "4"]
[White "Galperin, Platon"]
[Black "Ustinov, Alexey"]
[Result "1/2-1/2"]
[ECO "C10"]
[WhiteElo "2363"]
[BlackElo "2232"]
[Annotator "NA"]
[PlyCount "49"]
[EventDate "2018.12.27"]
[EventType "swiss"]
[EventCountry "POL"]
[SourceTitle "playchess.com"]
[Source "ChessBase"]
[SourceQuality "1"]
[TimeControl "40/5400+30:1800+30"]

1. e4 {[%emt 0:06:19]} e6 {[%emt 0:04:30]} 2. d4 {[%emt 0:00:19]} d5 {[%emt 0:00:05]} 3. Nd2 {[%emt 0:00:06]} dxe4 {[%emt 0:01:20]} 4. Nxe4 {[%emt 0:00:02]} Nd7 {[%emt 0:00:23]} 5. Nf3 {[%emt 0:00:37]} Ngf6 {[%emt 0:00:54]} 6. Nxf6+ {[%emt 0:00:03]} Nxf6 {[%emt 0:00:30]} 7. g3 {[%emt 0:00:02]} b6 {[%emt 0:06:14]} 8. Bb5+ {[%emt 0:00:02]} Bd7 {[%emt 0:00:27]} 9. a4 {[%emt 0:00:01]} a6 {[%emt 0:15:29]} 10. Be2 {[%emt 0:00:14]} Bc6 {[%emt 0:00:49]} 11. O-O {[%emt 0:00:03]} Bd6 {[%emt 0:04:15]} 12. Ne5 {[%emt 0:00:41]} Bxe5 {[%emt 0:08:18]} 13. dxe5 {[%emt 0:02:07]} Qd5 {[%emt 0:00:13]} 14. Qxd5 {[%emt 0:00:23]} Nxd5 {[%emt 0:00:06]} 15. a5 {[%emt 0:12:49]} b5 {[%emt 0:01:08]} 16. Bd2 {[%emt 0:00:25]} Kd7 {[%emt 0:05:36]} 17. Rfd1 {[%emt 0:04:45]} Rhb8 {[%emt 0:01:01]} 18. c3 {[%emt 0:00:23]} Ke8 {[%emt 0:00:39]} 19. h4 {[%emt 0:16:54]} Ne7 {[%emt 0:07:32]} 20. h5 {[%emt 0:03:22]} Bd5 {[%emt 0:01:13]} 21. h6 {[%emt 0:07:58]} g6 {[%emt 0:00:13]} 22. Bg5 {[%emt 0:09:49]} c5 {[%emt 0:04:41]} 23. Kh2 {[%emt 0:04:26]} Rd8 {[%emt 0:04:29]} 24. Kh3 {[%emt 0:01:29]} Bb3 {[%emt 0:01:05]} 25. Rdc1 {[%emt 0:03:45]} 1/2-1/2

[Event "XXIX Cracovia 2018"]
[Site "Krakow"]
[Date "2018.12.29"]
[Round "4"]
[White "Eggink, Ryszard"]
[Black "Janik, Igor"]
[Result "1/2-1/2"]
[ECO "A45"]
[WhiteElo "2343"]
[BlackElo "2476"]
[Annotator "ChessBase"]
[PlyCount "80"]
[EventDate "2018.12.27"]
[EventType "swiss"]
[EventCountry "POL"]
[SourceTitle "playchess.com"]
[Source "ChessBase"]
[SourceQuality "1"]
[TimeControl "40/5400+30:1800+30"]

1. d4 {[%emt 0:00:00]} Nf6 {[%emt 0:00:00]} 2. Bg5 {[%emt 0:00:30]} c5 {[%emt 0:00:25]} 3. Bxf6 {[%emt 0:01:15]} exf6 {[%emt 0:00:06]} 4. Nf3 {[%emt 0:01:25]} Qb6 {[%emt 0:00:32]} 5. b3 {[%emt 0:02:45]} d5 {[%emt 0:07:04]} 6. e3 {[%emt 0:02:51]} Be6 {[%emt 0:00:09]} 7. Bd3 {[%emt 0:04:43]} Nc6 {[%emt 0:00:08]} 8. c3 {[%emt 0:00:20]} Be7 {[%emt 0:00:14]} 9. O-O {[%emt 0:01:12]} O-O {[%emt 0:00:10]} 10. Nbd2 {[%emt 0:04:18]} Rac8 {[%emt 0:01:44]} 11. Rc1 {[%emt 0:01:54]} Rfd8 {[%emt 0:01:42]} 12. h3 {[%emt 0:13:39]} g6 {[%emt 0:02:52]} 13. Qe2 {[%emt 0:03:06]} f5 {[%emt 0:00:45]} 14. dxc5 {[%emt 0:03:36]} Bxc5 {[%emt 0:00:16]} 15. b4 {[%emt 0:00:06]} Bf8 {[%emt 0:01:12]} 16. a3 {[%emt 0:00:17]} a5 {[%emt 0:04:16]} 17. Nb3 {[%emt 0:04:38]} Bh6 {[%emt 0:00:41]} 18. Nc5 {[%emt 0:03:45]} Re8 {[%emt 0:02:24]} 19. Qd2 {[%emt 0:01:48]} Rcd8 {[%emt 0:02:00]} 20. Nd4 {[%emt 0:11:18]} Ne5 {[%emt 0:04:16]} 21. Bb5 {[%emt 0:06:11]} Re7 {[%emt 0:02:05]} 22. a4 {[%emt 0:00:32]} Bc8 {[%emt 0:02:50]} 23. Ncb3 {[%emt 0:00:38]} axb4 {[%emt 0:01:00]} 24. cxb4 {[%emt 0:00:01]} Qf6 {[%emt 0:00:13]} 25. f4 {[%emt 0:02:17]} Nc4 {[%emt 0:04:17]} 26. Bxc4 {[%emt 0:00:03]} dxc4 {[%emt 0:00:05]} 27. Rxc4 {[%emt 0:00:07]} Be6 {[%emt 0:00:50]} 28. Nxe6 {[%emt 0:00:57]} Rxe6 {[%emt 0:00:11]} 29. Rd4 {[%emt 0:01:56]} Rde8 {[%emt 0:00:11]} 30. Rf3 {[%emt 0:00:58]} Bf8 {[%emt 0:01:33]} 31. Na5 {[%emt 0:04:12]} Qe7 {[%emt 0:03:39]} 32. b5 {[%emt 0:03:18]} b6 {[%emt 0:07:04]} 33. Nc6 {[%emt 0:00:55]} Qc5 {[%emt 0:00:37]} 34. Kh2 {[%emt 0:03:16]} h5 {[%emt 0:03:41]} 35. h4 {[%emt 0:03:29]} Bg7 {[%emt 0:00:55]} 36. Rd5 {[%emt 0:02:05]} Qc4 {[%emt 0:00:17]} 37. a5 {[%emt 0:01:07]} Bc3 {[%emt 0:00:33]} 38. Qd3 {[%emt 0:02:21]} Qxd3 {[%emt 0:01:14]} 39. Rxd3 {[%emt 0:00:04]} Bxa5 {[%emt 0:00:04]} 40. Rf1 {[%emt 0:00:00]} Rxe3 {[%emt 0:00:00]} 1/2-1/2

[Event "XXIX Cracovia 2018"]
[Site "Krakow"]
[Date "2018.12.29"]
[Round "4"]
[White "Naboka, Sergey"]
[Black "Bus, Konrad"]
[Result "1/2-1/2"]
[ECO "C42"]
[WhiteElo "2324"]
[BlackElo "2221"]
[Annotator "NA"]
[PlyCount "56"]
[EventDate "2018.12.27"]
[EventType "swiss"]
[EventCountry "POL"]
[SourceTitle "playchess.com"]
[Source "ChessBase"]
[SourceQuality "1"]
[TimeControl "40/5400+30:1800+30"]

1. e4 {[%emt 0:00:00]} e5 {[%emt 0:00:00]} 2. Nf3 {[%emt 0:00:00]} Nf6 {[%emt 0:00:04]} 3. Nxe5 {[%emt 0:00:31]} d6 {[%emt 0:00:07]} 4. Nf3 {[%emt 0:00:13]} Nxe4 {[%emt 0:00:09]} 5. Nc3 {[%emt 0:00:19]} Nxc3 {[%emt 0:00:53]} 6. dxc3 {[%emt 0:00:06]} Be7 {[%emt 0:01:25]} 7. Bf4 {[%emt 0:00:58]} Nc6 {[%emt 0:02:38]} 8. Qd2 {[%emt 0:01:01]} Be6 {[%emt 0:02:03]} 9. Ng5 {[%emt 0:03:58]} Bxg5 {[%emt 0:02:35]} 10. Bxg5 {[%emt 0:00:06]} Qd7 {[%emt 0:00:53]} 11. Be2 {[%emt 0:00:51]} a6 {[%emt 0:07:16]} 12. O-O {[%emt 0:02:22]} O-O {[%emt 0:00:43]} 13. c4 {[%emt 0:01:53]} Rfe8 {[%emt 0:03:22]} 14. Rad1 {[%emt 0:02:10]} f6 {[%emt 0:01:55]} 15. Bf4 {[%emt 0:01:18]} Rad8 {[%emt 0:02:29]} 16. Rfe1 {[%emt 0:02:52]} Ne5 {[%emt 0:04:59]} 17. Qc3 {[%emt 0:01:58]} Qc6 {[%emt 0:03:45]} 18. Bxe5 {[%emt 0:05:14]} dxe5 {[%emt 0:10:15]} 19. Bf3 {[%emt 0:00:24]} Qxc4 {[%emt 0:00:40]} 20. Qxc4 {[%emt 0:05:24]} Bxc4 {[%emt 0:00:42]} 21. Rxd8 {[%emt 0:02:45]} Rxd8 {[%emt 0:00:44]} 22. b3 {[%emt 0:00:01]} Bf7 {[%emt 0:07:12]} 23. Bxb7 {[%emt 0:00:21]} a5 {[%emt 0:01:55]} 24. Kf1 {[%emt 0:02:13]} Rd2 {[%emt 0:08:38]} 25. Re2 {[%emt 0:03:23]} Rd1+ {[%emt 0:00:20]} 26. Re1 {[%emt 0:00:06]} Rd2 {[%emt 0:00:35]} 27. Re2 {[%emt 0:00:17]} Rd1+ {[%emt 0:00:07]} 28. Re1 {[%emt 0:00:04]} Rd2 1/2-1/2